fUSD/lending_fUSD_20250524
["ID","MTS","AMOUNT","RATE_DAILY","PERIOD"]
[362184698,1748073038435,-500.64296024,0.00027588,5]
[362184699,1748073038445,-501.55256694,0.00027588,5]
[362184701,1748073038454,-504.88282074,0.00027588,5]
[362184703,1748073038463,-164.0,0.00027626,2]
[362184705,1748073038474,-251.11897888,0.00027644,2]
[362184708,1748073038483,-150.0,0.00027673,2]
[362184710,1748073038492,-8903.13292336,0.00027742,2]
[362184712,1748073038502,-205.12940993,0.000279,18]
[362184713,1748073038511,-420.0,0.00027999,2]
[362184716,1748073038521,-420.0,0.00027999,2]
[362184717,1748073038530,-500.0,0.00027999,2]
[362184719,1748073038540,-47737.70331388,0.00028,2]
[362184722,1748073038553,-169.3570072,0.00028073,5]
[362184724,1748073038563,-159.4069472,0.00028073,5]
[362184726,1748073038572,-420.84320401,0.00028136,2]
[362184728,1748073038581,-420.0,0.00028136,2]
[362184730,1748073038591,-260.4103811,0.00028192,2]
[362184732,1748073038600,-420.0,0.00028273,2]
[362184734,1748073038609,-150.0,0.000284,2]
[362184736,1748073038618,-8903.13292336,0.00028637,2]
[362184738,1748073038628,-207.0,0.00028716,2]
[362184740,1748073038638,-270.0455652,0.0002874,2]
[362184742,1748073038646,-151.0,0.00028788,2]
[362184744,1748073038655,-156.0,0.00028788,2]
[362184746,1748073038664,-151.0,0.00028788,2]
[362184747,1748073038673,-668.65185757,0.00028788,2]
[362184750,1748073038683,-668.65185757,0.00028788,2]
[362184751,1748073038692,-300.0,0.00028788,2]
[362184753,1748073038701,-1438.09495884,0.00028788,2]
[362184756,1748073038712,-300.0,0.00028788,2]
[362184758,1748073038721,-300.0,0.00028788,2]
[362184760,1748073038730,-300.0,0.00028788,2]
[362184762,1748073038739,-300.0,0.00028788,2]
[362184764,1748073038748,-300.0,0.00028788,2]
[362184766,1748073038757,-300.0,0.00028788,2]
[362184768,1748073038767,-300.0,0.00028788,2]
[362184769,1748073038777,-300.0,0.00028788,2]
[362184771,1748073038786,-320.0,0.00028788,2]
[362184773,1748073038795,-151.0,0.00028788,2]
[362184775,1748073038805,-207.4,0.00028788,2]
[362184777,1748073038814,-159.4117376,0.00028792,5]
[362184779,1748073038823,-159.4053504,0.00028792,5]
[362184781,1748073038833,-56.8894784,0.00028909,2]
[362184784,1748073038845,-93.1105216,0.00028909,2]
[362184786,1748073038854,-159.4117376,0.00029133,5]
[362184788,1748073038863,-159.3861888,0.00029133,5]
[362184790,1748073038873,-500.0,0.00029133,5]
[362184792,1748073038883,-500.0,0.00029133,5]
[362184794,1748073038892,-500.74484075,0.00029133,5]
[362184795,1748073038901,-159.4117376,0.00029165,5]
[362184797,1748073038911,-280.03725112,0.00029288,2]
[362184799,1748073038920,-156.71174981,0.00029336,2]
[362184801,1748073038929,-151.0,0.00029336,2]
[362184803,1748073038938,-693.3919763,0.00029336,2]
[362184805,1748073038948,-151.0,0.00029336,2]
[362184807,1748073038957,-1124.26,0.00029401,2]
[362184809,1748073038966,-26525.62,0.00029402,2]
[362184811,1748073038976,-8903.13292336,0.00029531,2]
[362184813,1748073038985,-952.735,0.00029582,2]
[362184815,1748073038994,-154.623,0.00029582,2]
[362184817,1748073039003,-1325.107,0.00029582,2]
[362184819,1748073039013,-801.0,0.00029582,2]
[362184822,1748073039022,-640.341,0.00029582,2]
[362184823,1748073039031,-4087.617,0.00029582,2]
[362184847,1748073039247,-881.0,0.00029582,2]
[362184849,1748073039256,-6841.0,0.00029582,2]
[362184851,1748073039266,-166.776,0.00029582,2]
[362184853,1748073039275,-150.59,0.00029582,2]
[362184855,1748073039284,-1152.0,0.00029582,2]
[362184857,1748073039294,-500.0,0.00029643,2]
[362184859,1748073039303,-150.0,0.00029643,2]
[362184861,1748073039311,-150.0,0.00029643,2]
[362184863,1748073039321,-150.0,0.00029643,2]
[362184865,1748073039330,-500.0,0.00029643,2]
[362184867,1748073039339,-161.01558353,0.00029644,30]
[362184869,1748073039348,-500.0,0.0002967,2]
[362184871,1748073039357,-150.0,0.0002967,2]
[362184873,1748073039367,-150.0,0.0002967,2]
[362184875,1748073039377,-150.0,0.0002967,2]
[362184877,1748073039386,-545.73255852,0.0002967,2]
[362184879,1748073039396,-865.22892603,0.00029675,2]
[362184881,1748073039405,-989.49831959,0.00029681,5]
[362184883,1748073039414,-1000.0,0.00029681,5]
[362184885,1748073039423,-571.81178589,0.00029698,2]
[362184887,1748073039433,-150.0,0.00029698,2]
[362184889,1748073039443,-200.0,0.00029698,2]
[362184891,1748073039452,-254.59245381,0.00029698,2]
[362184893,1748073039461,-150.0,0.00029725,2]
[362184895,1748073039471,-157.87907511,0.00029753,2]
[362184897,1748073039480,-161.01558353,0.00029781,30]
[362184899,1748073039489,-166.81,0.00029802,2]
[362184902,1748073039499,-290.39862941,0.00029836,2]
[362184904,1748073039509,-1000.0,0.0002988,120]
[362184905,1748073039519,-200.0,0.00029882,2]
[362184907,1748073039528,-200.0,0.00029882,2]
[362184909,1748073039538,-489.22467,0.00029882,2]
[362184911,1748073039550,-151.0,0.00029884,2]
[362184913,1748073039560,-719.04747942,0.00029884,2]
[362184915,1748073039569,-151.0,0.00029884,2]
[362184917,1748073039579,-161.01558353,0.00029918,30]
[362184919,1748073039588,-81152.38718167,0.0003,10]
[362184921,1748073039599,-938.45019744,0.0003,7]
[362184923,1748073039608,-2000.0,0.0003,2]
[362184926,1748073039618,-155.0,0.0003,2]
[362184927,1748073039629,-161.01558353,0.00030027,30]
[362184930,1748073039639,-161.05,0.00030036,120]
[362184931,1748073039648,-1000.0,0.00030101,2]
[362184933,1748073039657,-173.82,0.00030137,80]
[362184936,1748073039667,-165.65,0.00030137,2]
[362184938,1748073039676,-156.587,0.00030157,2]
[362184939,1748073039685,-693.3919763,0.00030157,2]
[362184942,1748073039696,-215.0738,0.00030157,2]
[362184943,1748073039705,-161.01558353,0.00030164,30]
[362184946,1748073039715,-200.0,0.00030181,2]
[362184947,1748073039724,-200.0,0.00030181,2]
[362184950,1748073039734,-31153.3498219,0.00030189,3]
[362184952,1748073039743,-500.0,0.00030199,2]
[362184954,1748073039752,-1000.0,0.00030199,2]
[362184956,1748073039763,-35963.1112,0.00030199,2]
[362184958,1748073039772,-159.35888719,0.00030199,15]
[362184960,1748073039781,-500.0,0.000302,2]
[362184962,1748073039791,-4567.02925512,0.00030201,2]
[362184964,1748073039800,-158.51909307,0.00030228,2]
[362184966,1748073039810,-1500.0,0.00030229,5]
[362184968,1748073039819,-159.3861888,0.00030273,5]
[362184970,1748073039829,-150.0,0.00030279,2]
[362184972,1748073039839,-15576.674911,0.00030289,3]
[362184974,1748073039848,-11797.07649637,0.00030299,7]
[362184977,1748073039868,-24320.93180846,0.00030299,7]
[362184979,1748073039923,-7015.99169517,0.00030299,7]
[362184980,1748073039933,-161.01558353,0.00030301,30]
[362184981,1748073039943,-301.1433787,0.00030384,2]
[362184982,1748073039952,-500.0,0.00030398,7]
[362184983,1748073039962,-8903.13292336,0.00030426,2]
[362184985,1748073039971,-151.0,0.00030432,2]
[362184987,1748073039980,-745.65223616,0.00030432,2]
[362184989,1748073039990,-151.0,0.00030432,2]
[362184991,1748073039999,-161.01558353,0.00030438,30]
[362184993,1748073040009,-430.75,0.00030447,120]
[362184995,1748073040018,-200.0,0.00030483,2]
[362184997,1748073040029,-200.0,0.00030483,2]
[362184999,1748073040039,-155.0,0.00030548,2]
[362185001,1748073040048,-161.01558353,0.00030575,30]
[362185003,1748073040057,-1300.0,0.00030587,7]
[362185005,1748073040067,-500.0,0.00030592,7]
[362185007,1748073040076,-500.0,0.00030636,120]
[362185009,1748073040085,-2000.0,0.00030636,120]
[362185011,1748073040094,-500.0,0.00030636,120]
[362185013,1748073040104,-500.0,0.00030636,120]
[362185015,1748073040113,-489.22467,0.0003068,2]
[362185017,1748073040122,-161.01558353,0.00030685,30]
[362185020,1748073040132,-1000.0,0.000307,2]
[362185022,1748073040141,-500.0,0.00030712,2]
[362185023,1748073040150,-9976.84017353,0.00030713,3]
[362185026,1748073040162,-419.229999,0.00030713,3]
[362185030,1748073040187,-1632.98765464,0.00030713,3]
[362185079,1748073040653,-3547.61708383,0.00030713,3]
[362185081,1748073040663,-4567.0292551,0.00030723,2]
[362185083,1748073040674,-1000.0,0.00030777,5]
[362185085,1748073040683,-500.0,0.00030779,7]
[362185087,1748073040693,-200.0,0.00030787,2]
[362185089,1748073040703,-158.51909307,0.000308,2]
[362185091,1748073040712,-161.01558353,0.00030822,30]
[362185093,1748073040721,-2101.505,0.00030841,27]
[362185095,1748073040731,-171.983,0.00030841,27]
[362185097,1748073040740,-500.0,0.0003088,7]
[362185099,1748073040750,-2000.0,0.0003088,120]
[362185101,1748073040759,-800.0,0.000309,11]
[362185103,1748073040769,-205.12940993,0.000309,23]
[362185105,1748073040778,-1575.593088,0.00030942,4]
[362185107,1748073040787,-161.01558353,0.00030959,30]
[362185109,1748073040797,-151.0,0.0003098,2]
[362185111,1748073040807,-773.2413689,0.0003098,2]
[362185113,1748073040816,-5021.27579875,0.00031,120]
[362185115,1748073040826,-1000.0,0.00031,2]
[362185117,1748073040835,-500.0,0.00031041,2]
[362185119,1748073040845,-200.0,0.00031095,2]
[362185122,1748073040854,-155.0,0.00031096,2]
[362185124,1748073040863,-467.0,0.00031107,5]
[362185125,1748073040873,-500.0,0.00031164,7]
[362185128,1748073040887,-500.0,0.00031164,7]
[362185130,1748073040900,-500.0,0.00031182,7]
[362185132,1748073040912,-4567.0292551,0.00031245,2]
[362185133,1748073040926,-209.0,0.0003126,2]
[362185135,1748073040936,-8903.13292336,0.00031321,2]
[362185138,1748073040945,-1300.0,0.00031336,7]
[362185139,1748073040954,-158.51909307,0.00031371,2]
[362185141,1748073040964,-500.0,0.00031388,7]
[362185143,1748073040973,-500.0,0.00031399,7]
[362185146,1748073040983,-500.0,0.00031413,7]
[362185148,1748073040992,-159.35888716,0.00031426,15]
[362185149,1748073041002,-1300.0,0.00031457,7]
[362185151,1748073041011,-31153.3498219,0.00031479,3]
[362185153,1748073041020,-839.28,0.00031487,31]
[362185155,1748073041030,-15576.674911,0.00031488,3]
[362185158,1748073041041,-93460.0494658,0.00031489,3]
[362185159,1748073041050,-12154.0959929,0.00031489,3]
[362185161,1748073041060,-2025.68266548,0.0003149,3]
[362185163,1748073041069,-500.0,0.00031498,2]
[362185166,1748073041078,-500.0,0.00031498,2]
[362185168,1748073041088,-207024.8929,0.00031499,2]
[362185170,1748073041099,-151.0,0.00031499,7]
[362185172,1748073041108,-243.142752,0.00031499,7]
[362185174,1748073041117,-151.0,0.00031499,7]
[362185176,1748073041127,-151.0,0.00031499,7]
[362185178,1748073041137,-151.0,0.00031499,7]
[362185180,1748073041146,-151.0,0.00031499,7]
[362185182,1748073041155,-151.0,0.00031499,7]
[362185184,1748073041164,-2907.45530219,0.000315,7]
[362185186,1748073041174,-162.380719,0.00031526,2]
[362185188,1748073041183,-719.04747942,0.00031526,2]
[362185190,1748073041192,-223.0315306,0.00031526,2]
[362185192,1748073041201,-1491.30447232,0.00031527,2]
[362185194,1748073041210,-151.0,0.00031528,2]
[362185196,1748073041220,-801.85129955,0.00031528,2]
[362185198,1748073041229,-200.0,0.00031615,2]
[362185200,1748073041238,-150.0,0.00031638,2]
[362185202,1748073041247,-150.0,0.0003164,2]
[362185204,1748073041256,-1300.0,0.00031645,7]
[362185206,1748073041265,-150.0,0.00031649,2]
[362185208,1748073041275,-150.0,0.00031651,2]
[362185210,1748073041285,-1124.26,0.00031665,2]
[362185212,1748073041294,-15576.674911,0.00031675,3]
[362185214,1748073041303,-2025.68266548,0.00031675,3]
[362185216,1748073041312,-150.0,0.00031716,2]
[362185218,1748073041324,-150.0,0.00031731,2]
[362185220,1748073041333,-2000.0,0.0003174,3]
[362185222,1748073041342,-150.0,0.00031745,2]
[362185224,1748073041352,-4567.0292551,0.00031767,2]
[362185226,1748073041361,-1000.0,0.0003177,2]
[362185228,1748073041370,-15576.674911,0.0003177,3]
[362185230,1748073041380,-2025.68266548,0.0003177,3]
[362185232,1748073041389,-150.0,0.00031774,2]
[362185234,1748073041399,-15576.674911,0.0003178,3]
[362185236,1748073041408,-4051.36533096,0.0003178,3]
[362185238,1748073041418,-24908.0,0.0003178,2]
[362185240,1748073041427,-500.0,0.0003178,2]
[362185242,1748073041437,-15576.674911,0.0003178,3]
[362185244,1748073041447,-4051.36533096,0.0003178,3]
[362185246,1748073041456,-46730.0247329,0.0003179,3]
[362185248,1748073041466,-8102.73066192,0.0003179,3]
[362185250,1748073041475,-150.0,0.00031796,2]
[362185252,1748073041484,-500.0,0.00031798,7]
[362185254,1748073041493,-15576.674911,0.00031799,3]
[362185256,1748073041502,-4051.36533096,0.00031799,3]
[362185258,1748073041511,-314.52833329,0.00031799,2]
[362185260,1748073041521,-500.0,0.00031799,2]
[362185262,1748073041531,-40942.35253347,0.000318,5]
[362185264,1748073041540,-150.0,0.000318,6]
[362185266,1748073041553,-209.0,0.000318,6]
[362185268,1748073041562,-5000.0,0.000318,2]
[362185270,1748073041571,-151.0,0.000318,7]
[362185272,1748073041580,-1700.0,0.000318,11]
[362185274,1748073041590,-151.0,0.000318,7]
[362185276,1748073041600,-151.0,0.000318,7]
[362185279,1748073041609,-151.0,0.000318,7]
[362185280,1748073041618,-590.13299,0.000318,7]
[362185281,1748073041629,-151.0,0.000318,7]
[362185282,1748073041638,-151.0,0.000318,7]
[362185283,1748073041647,-344.19082,0.000318,7]
[362185284,1748073041657,-151.0,0.000318,7]
[362185285,1748073041666,-151.0,0.000318,7]
[362185286,1748073041674,-344.19082,0.000318,7]
[362185287,1748073041683,-151.0,0.000318,7]
[362185288,1748073041692,-150.0,0.000318,5]
[362185290,1748073041702,-151.0,0.000318,7]
[362185292,1748073041712,-152.900244,0.000318,7]
[362185294,1748073041721,-151.0,0.000318,7]
[362185296,1748073041731,-151.0,0.000318,7]
[362185298,1748073041740,-151.0,0.000318,7]
[362185300,1748073041749,-151.0,0.000318,7]
[362185302,1748073041759,-151.0,0.000318,7]
[362185304,1748073041770,-30000.0,0.000318,2]
[362185306,1748073041780,-31153.3498219,0.00031809,3]
[362185308,1748073041790,-6077.04799644,0.00031809,3]
[362185311,1748073041799,-151.0,0.00031809,7]
[362185313,1748073041809,-151.0,0.00031809,7]
[362185315,1748073041818,-151.0,0.00031809,7]
[362185336,1748073042013,-154.272891,0.00031809,7]
[362185338,1748073042023,-190.533085,0.00031809,7]
[362185340,1748073042033,-190.533085,0.00031809,7]
[362185342,1748073042043,-151.0,0.00031809,7]
[362185344,1748073042052,-151.0,0.00031809,7]
[362185346,1748073042062,-203.709698,0.00031809,7]
[362185348,1748073042071,-203.709698,0.00031809,7]
[362185350,1748073042081,-293.278,0.00031809,7]
[362185352,1748073042092,-151.0,0.00031809,7]
[362185354,1748073042102,-151.0,0.00031809,7]
[362185356,1748073042112,-356.357486,0.00031809,7]
[362185358,1748073042121,-356.357486,0.00031809,7]
[362185360,1748073042130,-500.0,0.00031818,2]
[362185362,1748073042140,-53865.0,0.00031819,7]
[362185364,1748073042149,-150.0,0.00031834,2]
[362185366,1748073042159,-500.0,0.0003184,3]
[362185368,1748073042169,-150.0,0.0003184,2]
[362185370,1748073042178,-150.0,0.00031843,2]
[362185372,1748073042187,-2025.68266548,0.00031849,3]
[362185374,1748073042197,-150.0,0.00031851,2]
[362185376,1748073042206,-150.0,0.00031853,2]
[362185378,1748073042215,-4051.36533096,0.0003186,3]
[362185380,1748073042224,-150.0,0.00031863,2]
[362185382,1748073042234,-15546.0,0.00031869,3]
[362185384,1748073042243,-8102.73066192,0.0003187,3]
[362185386,1748073042253,-150.0,0.00031873,2]
[362185388,1748073042263,-150.0,0.00031876,2]
[362185390,1748073042272,-2025.68266548,0.00031879,3]
[362185392,1748073042282,-151.0,0.0003188,7]
[362185394,1748073042291,-151.0,0.0003188,7]
[362185396,1748073042300,-151.0,0.0003188,7]
[362185398,1748073042310,-590.13299,0.0003188,7]
[362185400,1748073042319,-3000.0,0.0003188,120]
[362185402,1748073042328,-151.0,0.0003188,7]
[362185404,1748073042337,-151.0,0.0003188,7]
[362185406,1748073042346,-344.19082,0.0003188,7]
[362185408,1748073042356,-174.865512,0.0003188,7]
[362185410,1748073042366,-151.0,0.0003188,7]
[362185412,1748073042376,-344.19082,0.0003188,7]
[362185414,1748073042385,-151.0,0.0003188,7]
[362185416,1748073042394,-151.0,0.0003188,7]
[362185418,1748073042404,-4051.36533096,0.0003188,3]
[362185420,1748073042414,-150.0,0.00031887,2]
[362185422,1748073042423,-666.0,0.00031887,10]
[362185424,1748073042434,-203.709698,0.00031889,7]
[362185426,1748073042443,-203.709698,0.00031889,7]
[362185428,1748073042452,-273.23399,0.00031889,7]
[362185430,1748073042461,-356.357486,0.00031889,7]
[362185432,1748073042470,-356.357486,0.00031889,7]
[362185434,1748073042480,-500.0,0.00031889,2]
[362185436,1748073042489,-151.0,0.0003189,7]
[362185438,1748073042498,-12025.9272581,0.0003189,2]
[362185440,1748073042508,-151.0,0.0003189,7]
[362185442,1748073042517,-151.0,0.0003189,7]
[362185444,1748073042526,-190.533085,0.0003189,7]
[362185446,1748073042536,-190.533085,0.0003189,7]
[362185448,1748073042547,-34323.2258972,0.0003189,2]
[362185450,1748073042556,-151.0,0.0003189,7]
[362185452,1748073042566,-160.8149687,0.0003189,2]
[362185454,1748073042575,-2003.4365551,0.0003189,2]
[362185456,1748073042585,-151.0,0.0003189,7]
[362185459,1748073042593,-151.0,0.0003189,7]
[362185461,1748073042603,-151.0,0.0003189,7]
[362185463,1748073042612,-663.58787488,0.0003189,2]
[362185465,1748073042622,-151.0,0.0003189,7]
[362185467,1748073042632,-152.949621,0.0003189,7]
[362185469,1748073042642,-151.0,0.0003189,7]
[362185471,1748073042651,-97234.2575734,0.0003189,2]
[362185473,1748073042660,-150.0,0.0003189,7]
[362185475,1748073042670,-150.0,0.0003189,7]
[362185477,1748073042679,-150.0,0.00031891,2]
[362185479,1748073042688,-500.0,0.00031897,7]
[362185481,1748073042698,-1445.04802605,0.00031899,2]
[362185483,1748073042707,-14847.25,0.000319,7]
[362185485,1748073042717,-2600.0,0.000319,11]
[362185487,1748073042726,-500.0,0.00031911,2]
[362185489,1748073042735,-362.0904219,0.00031912,2]
[362185491,1748073042745,-203.709698,0.00031912,7]
[362185493,1748073042754,-203.709698,0.00031912,7]
[362185495,1748073042765,-356.357486,0.00031912,7]
[362185497,1748073042774,-356.357486,0.00031912,7]
[362185499,1748073042783,-151.0,0.00031912,7]
[362185501,1748073042792,-151.0,0.00031912,7]
[362185503,1748073042801,-151.0,0.00031912,7]
[362185505,1748073042811,-590.13299,0.00031912,7]
[362185507,1748073042821,-590.13299,0.00031912,7]
[362185509,1748073042830,-151.0,0.00031912,7]
[362185512,1748073042839,-344.19082,0.00031912,7]
[362185514,1748073042849,-151.0,0.00031912,7]
[362185516,1748073042858,-344.19082,0.00031912,7]
[362185518,1748073042867,-151.0,0.00031912,7]
[362185520,1748073042876,-151.0,0.00031912,7]
[362185522,1748073042886,-489.22468,0.0003193,2]
[362185524,1748073042895,-158.51909307,0.00031942,2]
[362185526,1748073042904,-152.445254,0.00031978,7]
[362185528,1748073042914,-151.0,0.00031978,7]
[362185530,1748073042923,-151.0,0.00031978,7]
[362185532,1748073042932,-151.0,0.00031978,7]
[362185534,1748073042942,-151.0,0.00031978,7]
[362185536,1748073042951,-151.0,0.00031978,7]
[362185538,1748073042960,-241.537516,0.00031978,7]
[362185540,1748073042969,-241.537516,0.00031978,7]
[362185542,1748073042979,-151.0,0.00031978,7]
[362185544,1748073042989,-345.98971446,0.00032,120]
[362185546,1748073042998,-209.0,0.00032,2]
[362185548,1748073043008,-1000.0,0.00032,2]
[362185550,1748073043017,-151.0,0.00032,7]
[362185552,1748073043026,-151.0,0.00032,7]
[362185554,1748073043035,-151.0,0.00032,7]
[362185556,1748073043045,-190.533085,0.00032,7]
[362185558,1748073043055,-190.533085,0.00032,7]
[362185560,1748073043064,-151.0,0.00032,7]
[362185562,1748073043074,-150.59,0.00032055,2]
[362185564,1748073043083,-151.0,0.00032076,2]
[362185566,1748073043093,-831.51979763,0.00032076,2]
[362185568,1748073043103,-887.41983895,0.00032088,7]
[362185570,1748073043114,-150.0,0.0003215,7]
[362185572,1748073043123,-209.0,0.0003216,2]
[362185574,1748073043132,-500.0,0.00032176,7]
[362185576,1748073043142,-1300.0,0.00032211,7]
[362185578,1748073043151,-8903.13292336,0.00032216,2]
[362185580,1748073043161,-4567.0292551,0.00032289,2]
[362185582,1748073043170,-300.33,0.00032329,2]
[362185584,1748073043180,-178.45376892,0.00032352,120]
[362185586,1748073043189,-1300.0,0.00032396,7]
[362185588,1748073043199,-150.0,0.00032409,7]
[362185590,1748073043208,-1077.0,0.00032457,5]
[362185591,1748073043217,-158.51909307,0.00032514,2]
[362185592,1748073043226,-4054.0,0.00032582,2]
[362185593,1748073043235,-881.0,0.00032582,2]
[362185594,1748073043245,-3400.273,0.00032582,2]
[362185595,1748073043254,-154.0,0.00032582,2]
[362185596,1748073043263,-1152.0,0.00032582,2]
[362185597,1748073043272,-1300.0,0.00032592,7]
[362185598,1748073043281,-8760.2835822,0.00032599,2]
[362185600,1748073043290,-571.15,0.000326,2]
[362185602,1748073043300,-862.28603014,0.00032624,2]
[362185604,1748073043310,-207.0,0.00032627,9]
[362185606,1748073043319,-159.35888716,0.00032653,15]
[362185608,1748073043328,-1300.0,0.00032658,7]
[362185610,1748073043338,-150.0,0.00032668,7]
[362185612,1748073043348,-14847.25,0.000327,7]
[362185614,1748073043357,-2000.0,0.000327,2]
[362185616,1748073043366,-151.0,0.000327,7]
[362185618,1748073043376,-151.0,0.000327,7]
[362185620,1748073043385,-151.0,0.000327,7]
[362185622,1748073043394,-1300.0,0.0003274,7]
[362185624,1748073043403,-209.0,0.0003275,2]
[362185626,1748073043413,-500.0,0.00032808,7]
[362185628,1748073043422,-500.0,0.00032808,7]
[362185630,1748073043432,-4567.0292551,0.00032812,2]
[362185632,1748073043441,-209.0,0.0003287,2]
[362185634,1748073043450,-165.65,0.00032877,2]
[362185636,1748073043459,-500.0,0.00032877,120]
[362185638,1748073043468,-2000.0,0.00032877,120]
[362185640,1748073043477,-500.0,0.00032877,120]
[362185642,1748073043488,-500.0,0.00032877,120]
[362185644,1748073043497,-150.0,0.00032877,2]
[362185646,1748073043507,-500.0,0.00032877,2]
[362185648,1748073043517,-1300.0,0.00032879,7]
[362185650,1748073043527,-4000.0,0.0003288,120]
[362185652,1748073043537,-168.3888056,0.00032895,2]
[362185654,1748073043548,-745.65223616,0.00032895,2]
[362185656,1748073043557,-231.28369723,0.00032895,2]
[362185658,1748073043567,-150.0,0.00032904,2]
[362185660,1748073043577,-500.0,0.00032904,2]
[362185662,1748073043587,-150.0,0.00032927,7]
[362185664,1748073043596,-150.0,0.00032932,2]
[362185666,1748073043606,-508.30736422,0.00032932,2]
[362185668,1748073043615,-12500.0,0.00032952,5]
[362185670,1748073043627,-150.0,0.00032959,2]
[362185672,1748073043636,-12500.0,0.00032961,5]
[362185674,1748073043646,-12500.0,0.0003297,5]
[362185676,1748073043655,-12500.0,0.0003297,5]
[362185678,1748073043664,-12500.0,0.0003297,5]
[362185680,1748073043673,-12500.0,0.0003297,5]
[362185682,1748073043682,-12500.0,0.0003297,5]
[362185683,1748073043691,-152.07726,0.0003297,7]
[362185686,1748073043701,-151.0,0.0003297,7]
[362185688,1748073043711,-151.0,0.0003297,7]
[362185690,1748073043721,-241.537516,0.0003297,7]
[362185692,1748073043731,-241.537516,0.0003297,7]
[362185694,1748073043740,-151.0,0.0003297,7]
[362185696,1748073043750,-150.0,0.00032987,2]
[362185698,1748073043760,-151.0,0.0003299,7]
[362185700,1748073043771,-152.988062,0.0003299,7]
[362185702,1748073043780,-151.0,0.0003299,7]
[362185704,1748073043790,-243.40412,0.0003299,7]
[362185706,1748073043799,-151.0,0.0003299,7]
[362185708,1748073043809,-151.0,0.0003299,7]
[362185709,1748073043818,-160.0,0.00033,2]
[362185712,1748073043827,-160.0,0.00033,2]
[362185713,1748073043837,-160.0,0.00033,2]
[362185715,1748073043846,-160.0,0.00033,2]
[362185717,1748073043856,-160.0,0.00033,2]
[362185720,1748073043865,-160.0,0.00033,2]
[362185722,1748073043875,-160.0,0.00033,2]
[362185724,1748073043884,-160.0,0.00033,2]
[362185726,1748073043893,-160.0,0.00033,2]
[362185728,1748073043905,-160.0,0.00033,2]
[362185730,1748073043915,-160.0,0.00033,2]
[362185732,1748073043926,-160.0,0.00033,2]
[362185735,1748073043935,-160.0,0.00033,2]
[362185737,1748073043945,-160.0,0.00033,2]
[362185739,1748073043955,-160.0,0.00033,2]
[362185740,1748073043965,-160.0,0.00033,2]
[362185742,1748073043974,-160.0,0.00033,2]
[362185745,1748073043984,-160.0,0.00033,2]
[362185747,1748073043994,-160.0,0.00033,2]
[362185749,1748073044004,-160.0,0.00033,2]
[362185750,1748073044013,-184.4,0.00033,2]
[362185752,1748073044023,-949.8129661,0.00033,34]
[362185753,1748073044032,-150.0,0.00033,14]
[362185755,1748073044041,-196.2,0.00033,2]
[362185757,1748073044051,-160.0,0.00033,2]
[362185758,1748073044060,-160.0,0.00033,2]
[362185760,1748073044070,-160.0,0.00033,2]
[362185762,1748073044079,-160.0,0.00033,2]
[362185763,1748073044088,-160.0,0.00033,2]
[362185765,1748073044098,-160.0,0.00033,2]
[362185766,1748073044108,-160.0,0.00033,2]
[362185768,1748073044117,-160.0,0.00033,2]